bitfinex/quotes_SOLUSD_20240827
["timestamp","ask_amount","ask_price","bid_price","bid_amount"]
[1724800029556,51.31053615,147.12,147.03,6.4876]
[1724800030444,51.31053615,147.12,147.04,0.12549]
[1724800030645,51.31053615,147.12,147.04,45.25098]
[1724800031024,51.31053615,147.12,147.03,6.4876]
[1724800032752,51.31053615,147.12,147.04,45.0]
[1724800032930,51.31053615,147.14,147.04,45.0]
[1724800033131,20.0,147.13,147.05,0.25098]
[1724800033350,51.31053615,147.14,147.05,0.25098]
[1724800034123,384.9,147.16,147.05,0.25098]
[1724800034351,256.7,147.19,147.06,15.2376]
[1724800034536,51.31053615,147.21,147.07,65.25098]
[1724800034733,692.91053615,147.24,147.08,6.6418]
[1724800034930,692.91053615,147.24,147.1,15.2376]
[1724800035125,384.9,147.24,147.11,0.25098]
[1724800035339,436.21053615,147.28,147.11,65.25098]
[1724800035522,436.21053615,147.28,147.12,6.6418]
[1724800035733,436.21053615,147.28,147.13,116.56151615]
[1724800035933,51.31053615,147.28,147.13,116.56151615]
[1724800036224,51.31053615,147.28,147.14,15.2376]
[1724800036437,51.31053615,147.28,147.15,65.25098]
[1724800038033,51.31053615,147.31,147.16,51.31053615]
[1724800038253,0.835341,147.33,147.19,15.2376]
[1724800038456,0.835341,147.33,147.2,0.25098]
[1724800038757,0.835341,147.33,147.24,6.6418]
[1724800038959,0.835341,147.33,147.25,65.25098]
[1724800041659,0.835341,147.33,147.25,45.25098]
[1724800042031,0.835341,147.33,147.25,0.25098]
[1724800043557,0.835341,147.33,147.25,65.25098]
[1724800044152,51.31053615,147.42,147.27,66.1904]
[1724800044353,51.31053615,147.42,147.29,6.6616]
[1724800044564,51.31053615,147.42,147.3,0.25098]
[1724800044736,51.31053615,147.42,147.3,65.25098]
[1724800046654,51.31053615,147.42,147.31,16.3608]
[1724800046967,51.31053615,147.42,147.32,65.25098]
[1724800047146,0.835341,147.47,147.33,8.22356625]
[1724800047338,0.835341,147.47,147.34,74.29823306]
[1724800047545,0.835341,147.47,147.35,6.4225]
[1724800047752,0.835341,147.47,147.36,65.25098]
[1724800048145,0.835341,147.47,147.36,45.25098]
[1724800048346,51.31053615,147.43,147.36,45.12549]
[1724800049658,51.31053615,147.43,147.35,6.4225]
[1724800049858,51.31053615,147.37,147.31,16.3608]
[1724800050369,51.31053615,147.4,147.31,16.3608]
[1724800051168,51.31053615,147.4,147.31,33.08351241]
[1724800051374,51.31053615,147.4,147.32,0.25098]
[1724800051667,51.31053615,147.4,147.33,9.04725306]
[1724800051871,51.31053615,147.4,147.34,0.25098]
[1724800052083,51.31053615,147.4,147.34,0.12549]
[1724800054660,51.31053615,147.43,147.34,9.17274306]
[1724800054856,51.31053615,147.43,147.35,45.12549]
[1724800055053,51.31053615,147.4,147.31,16.3608]
[1724800056354,51.31053615,147.34,147.31,16.3608]
[1724800056558,51.31053615,147.34,147.26,6.60354979]
[1724800056559,51.31053615,147.34,147.27,15.1475]
[1724800056756,5.0,147.46,147.3,6.058]
[1724800056956,1.67935406,147.46,147.33,21.2055]
[1724800057159,0.835341,147.47,147.34,19.6539329]
[1724800057376,52.14587715,147.47,147.34,19.6539329]
[1724800057554,52.14587715,147.47,147.33,21.2055]
[1724800057947,51.31053615,147.44,147.33,21.2055]
[1724800058166,51.31053615,147.44,147.34,45.25098]
[1724800058373,51.31053615,147.44,147.34,65.25098]
[1724800058577,52.14587715,147.47,147.34,45.25098]
[1724800058765,52.14587715,147.47,147.35,20.0]
[1724800058950,0.835341,147.47,147.37,74.31443615]
[1724800059155,0.835341,147.47,147.38,29.31038717]
[1724800059375,0.835341,147.47,147.38,65.25098]
[1724800060755,52.14587715,147.47,147.38,0.25098]
[1724800061154,52.14587715,147.47,147.38,0.12549]
[1724800061562,51.31053615,147.44,147.33,6.3817]
[1724800061968,51.31053615,147.41,147.32,15.289]
[1724800062169,20.0,147.4,147.29,6.3817]
[1724800062394,51.31053615,147.38,147.29,6.3817]
[1724800063952,51.31053615,147.38,147.29,16.02295871]
[1724800064257,436.21053615,147.42,147.3,18.70066588]
[1724800064583,116.56151615,147.41,147.3,9.64125871]
[1724800065161,116.31053615,147.41,147.3,9.64125871]
[1724800065370,116.31053615,147.41,147.31,9.18489717]
[1724800065371,71.31053615,147.41,147.31,9.18489717]
[1724800065573,45.0,147.4,147.3,9.64125871]
[1724800065776,45.0,147.4,147.29,6.50719]
[1724800066064,45.0,147.4,147.3,45.25098]
[1724800066692,45.0,147.4,147.3,0.25098]
[1724800067956,45.0,147.4,147.3,9.31038717]
[1724800068163,45.0,147.4,147.3,0.25098]
[1724800068366,45.0,147.4,147.3,9.31038717]
[1724800069488,384.9,147.41,147.31,9.05940717]
[1724800069786,384.9,147.41,147.32,45.25098]
[1724800069988,384.9,147.41,147.33,9.05940717]
[1724800070372,384.9,147.41,147.34,45.25098]
[1724800071380,384.9,147.41,147.34,0.25098]
[1724800071586,51.31053615,147.42,147.31,20.0]
[1724800071795,51.31053615,147.39,147.3,20.0]
[1724800071974,51.31053615,147.39,147.29,6.3817]
[1724800072172,51.31053615,147.39,147.29,15.44110717]
[1724800072483,51.31053615,147.39,147.29,6.3817]
[1724800073262,51.31053615,147.39,147.3,0.12549]
[1724800073493,51.31053615,147.39,147.3,45.25098]
[1724800074363,1.69407118,147.43,147.3,45.25098]
[1724800074557,51.31053615,147.4,147.3,45.25098]
[1724800074758,51.31053615,147.43,147.31,18.59327143]
[1724800074963,51.31053615,147.43,147.32,45.25098]
[1724800074964,20.0,147.42,147.32,45.25098]
[1724800076666,51.31053615,147.37,147.26,6.6067]
[1724800077065,51.31053615,147.34,147.26,6.6067]
[1724800078783,51.31053615,147.34,147.23,30.5256265]
[1724800078784,51.31053615,147.31,147.23,23.18849411]
[1724800078978,51.31053615,147.31,147.23,16.1328]
[1724800079977,384.9,147.34,147.24,16.6815814]
[1724800080475,384.9,147.34,147.25,20.0]
[1724800080677,51.31053615,147.35,147.24,7.64169589]
[1724800080882,51.31053615,147.35,147.23,16.1328]
[1724800081092,51.31053615,147.32,147.23,16.1328]
[1724800081276,57.54783615,147.32,147.23,3.54367721]
[1724800081482,20.0,147.31,147.22,9.78427721]
[1724800081677,20.0,147.31,147.22,6.2406]
[1724800081905,51.31053615,147.29,147.21,1.70330997]
[1724800082191,51.31053615,147.29,147.18,34.64663443]
[1724800082192,45.12549,147.28,147.18,15.7108]
[1724800082378,45.12549,147.28,147.19,3.54654311]
[1724800082572,45.12549,147.28,147.19,6.29642525]
[1724800082773,45.12549,147.28,147.19,7.64169589]
[1724800082983,45.12549,147.28,147.19,11.188239]
[1724800084473,384.9,147.29,147.21,51.31053615]
[1724800084805,384.9,147.29,147.22,12.08381865]
[1724800084976,20.0,147.31,147.23,6.4703]
[1724800085176,256.7,147.38,147.24,52.92000514]
[1724800085402,51.31053615,147.38,147.25,3.54573692]
[1724800085906,51.31053615,147.38,147.24,0.25098]
[1724800085907,53.01095413,147.38,147.24,45.25098]
[1724800086070,53.01095413,147.38,147.25,3.54573692]
[1724800086271,1.70041798,147.38,147.25,3.54573692]
[1724800086493,20.0,147.37,147.25,3.54573692]
[1724800086967,20.0,147.37,147.23,6.4703]
[1724800087797,45.25098,147.36,147.23,6.4703]
[1724800088108,45.25098,147.36,147.26,51.31053615]
[1724800088399,20.0,147.35,147.27,3.54381183]
[1724800088570,6.1211,147.42,147.27,61.4567]
[1724800088772,7.81829408,147.42,147.29,51.31053615]
[1724800088986,7.81829408,147.42,147.3,48.79471633]
[1724800088987,6.1211,147.42,147.3,48.79471633]
[1724800089191,6.1211,147.42,147.3,45.25098]
[1724800089697,6.1211,147.42,147.31,3.53847564]
[1724800090208,20.0,147.41,147.3,48.53847564]
[1724800090490,20.0,147.41,147.31,10.04388861]
[1724800090697,20.0,147.45,147.31,10.04388861]
[1724800090893,51.31053615,147.46,147.31,10.04388861]
[1724800091102,53.02816308,147.46,147.31,9.79290861]
[1724800091273,59.80966308,147.46,147.31,9.79290861]
[1724800091676,53.02816308,147.46,147.32,45.0]
[1724800091895,1.71762693,147.46,147.33,0.12549]
[1724800092082,7.347141,147.47,147.32,45.12549]
[1724800092279,51.31053615,147.46,147.32,45.12549]
[1724800092984,20.12549,147.45,147.32,45.12549]
[1724800093185,20.12549,147.45,147.32,96.43602615]
[1724800093394,20.0,147.46,147.33,15.31249]
[1724800093695,20.0,147.46,147.34,45.12549]
[1724800093999,20.0,147.46,147.35,0.12549]
[1724800094387,9.00121455,147.47,147.37,15.187]
[1724800094388,0.835341,147.47,147.37,15.187]
[1724800094585,0.835341,147.47,147.38,45.25098]
[1724800095003,0.835341,147.47,147.37,15.187]
[1724800096191,0.835341,147.47,147.38,45.46379725]
[1724800096391,0.835341,147.47,147.39,0.12549]
[1724800096794,0.835341,147.47,147.4,0.463739]
[1724800097121,0.835341,147.47,147.41,0.25098]
[1724800097409,0.835341,147.47,147.42,0.12549]
[1724800097616,0.835341,147.47,147.41,0.12549]
[1724800097911,0.835341,147.47,147.4,45.25098]
[1724800104015,0.835341,147.47,147.4,45.12549]
[1724800104887,0.835341,147.47,147.41,0.12549]
[1724800105890,0.835341,147.47,147.42,6.0544]
[1724800106096,0.835341,147.47,147.43,45.25098]
[1724800107220,0.835341,147.47,147.42,6.0544]
[1724800110897,0.835341,147.47,147.38,6.2834]
[1724800111091,0.835341,147.47,147.39,107.80813988]
[1724800115303,0.835341,147.47,147.39,65.25098]
[1724800116412,0.835341,147.47,147.39,107.80813988]
[1724800116597,0.835341,147.47,147.41,42.55715988]
[1724800116928,0.835341,147.47,147.42,65.25098]
[1724800117218,0.835341,147.47,147.45,42.55715988]
[1724800117394,6.5466,147.59,147.47,21.7261]
[1724800117601,6.5466,147.59,147.48,42.68264988]
[1724800117906,0.835341,147.62,147.54,42.55715988]
[1724800118112,0.835341,147.62,147.55,1.35538084]
[1724800118409,0.835341,147.62,147.56,42.80813988]
[1724800118616,0.835341,147.62,147.57,46.35501355]
[1724800118821,0.835341,147.62,147.58,42.80813988]
[1724800119123,0.835341,147.62,147.5,49.38411449]
[1724800119414,0.835341,147.62,147.51,45.25098]
[1724800119609,42.55715988,147.61,147.51,45.12549]
[1724800119813,6.1329,147.61,147.47,21.7261]
[1724800120006,42.55715988,147.58,147.47,21.7261]
[1724800120190,42.55715988,147.6,147.47,21.7261]
[1724800120823,6.1329,147.61,147.47,21.7261]
[1724800121129,42.55715988,147.56,147.43,6.6358]
[1724800121495,65.25098,147.6,147.43,6.6358]
[1724800121694,42.55715988,147.59,147.45,42.55715988]
[1724800122006,20.0,147.58,147.47,42.55715988]
[1724800122198,42.55715988,147.59,147.48,45.12549]
[1724800122427,20.0,147.6,147.49,42.55715988]
[1724800122609,20.0,147.6,147.5,45.12549]
[1724800122999,20.0,147.6,147.51,0.12549]
[1724800126520,42.55715988,147.57,147.45,50.59214539]
[1724800126702,42.55715988,147.57,147.46,20.0]
[1724800126900,42.55715988,147.59,147.46,20.0]
[1724800127907,42.55715988,147.59,147.47,45.25098]
[1724800128405,42.55715988,147.59,147.47,0.25098]
[1724800129121,42.55715988,147.57,147.47,0.25098]
[1724800129526,42.55715988,147.55,147.44,20.0]
[1724800130922,42.55715988,147.55,147.45,45.25098]
[1724800131125,15.7051,147.58,147.44,20.0]
[1724800131333,15.7051,147.58,147.43,6.6358]
[1724800131334,42.55715988,147.52,147.43,6.6358]
[1724800132026,20.0,147.6,147.43,49.19295988]
[1724800132316,42.55715988,147.59,147.45,57.57125988]
[1724800132700,42.55715988,147.59,147.46,65.25098]
[1724800133922,42.55715988,147.53,147.45,15.0141]
[1724800134405,42.55715988,147.51,147.43,6.6358]
[1724800134932,42.55715988,147.49,147.41,15.0141]
[1724800135220,42.55715988,147.45,147.36,22.76475461]
[1724800135417,42.55715988,147.45,147.37,7.09690014]
[1724800135628,42.55715988,147.45,147.36,15.9378]
[1724800137201,262.884,147.58,147.36,15.9378]
[1724800137406,262.884,147.58,147.39,42.55715988]
[1724800137407,42.55715988,147.54,147.39,42.55715988]
[1724800137625,42.55715988,147.54,147.4,73.28596551]
[1724800137808,42.55715988,147.56,147.4,53.03498551]
[1724800138130,42.55715988,147.48,147.36,22.76475461]
[1724800138326,42.55715988,147.48,147.37,20.0]
[1724800138500,42.55715988,147.46,147.36,22.76475461]
[1724800138699,42.55715988,147.46,147.34,13.69942345]
[1724800138700,42.55715988,147.42,147.34,13.69942345]
[1724800138912,42.55715988,147.42,147.34,6.6016]
[1724800139315,42.55715988,147.44,147.34,6.6016]
[1724800139531,42.55715988,147.42,147.34,6.6016]
[1724800140614,42.55715988,147.44,147.34,6.6016]
[1724800141328,42.55715988,147.42,147.34,6.6016]
[1724800141710,42.55715988,147.4,147.32,15.4548]
[1724800141911,42.55715988,147.38,147.3,6.3633]
[1724800142519,0.12549,147.45,147.3,6.3633]
[1724800142520,0.12549,147.45,147.3,14.300059]
[1724800142726,42.68264988,147.45,147.3,14.300059]
[1724800143034,42.68264988,147.45,147.3,56.85721888]
[1724800143035,20.0,147.44,147.3,56.85721888]
[1724800143203,42.55715988,147.47,147.32,42.55715988]
[1724800143406,48.74115988,147.49,147.35,15.5481]
[1724800143623,48.74115988,147.49,147.36,45.25098]
[1724800143803,42.55715988,147.47,147.36,45.25098]
[1724800144007,42.55715988,147.44,147.36,45.25098]
[1724800144231,42.55715988,147.44,147.35,15.5481]
[1724800144418,42.55715988,147.42,147.35,15.5481]
[1724800145421,42.55715988,147.44,147.35,15.5481]
[1724800145942,42.55715988,147.44,147.36,0.12549]
[1724800146232,42.55715988,147.44,147.36,45.25098]
[1724800146412,42.55715988,147.44,147.35,15.5481]
[1724800147108,42.55715988,147.46,147.35,15.5481]
[1724800147436,42.55715988,147.46,147.36,45.25098]
[1724800147629,6.7782,147.53,147.37,6.0527]
[1724800147946,42.55715988,147.48,147.38,45.25098]
[1724800149311,42.55715988,147.48,147.38,45.12549]
[1724800149911,42.55715988,147.48,147.37,6.0527]
[1724800149912,42.55715988,147.46,147.37,6.0527]
[1724800150112,42.55715988,147.44,147.37,6.0527]
[1724800150418,42.55715988,147.44,147.35,15.5481]
[1724800150814,384.9,147.48,147.35,15.5481]
[1724800150815,42.55715988,147.42,147.35,15.5481]
[1724800151410,42.55715988,147.4,147.33,6.3901]
[1724800152320,42.55715988,147.4,147.31,15.8352]
[1724800153020,6.69069,147.45,147.31,15.8352]
[1724800153021,6.5652,147.45,147.32,42.55715988]
[1724800153266,49.12235988,147.45,147.33,1.35422001]
[1724800153437,42.55715988,147.43,147.34,0.25098]
[1724800154327,42.55715988,147.41,147.33,45.0]
[1724800154632,42.55715988,147.41,147.32,45.12549]
[1724800154831,42.55715988,147.41,147.33,0.12549]
[1724800155618,0.25098,147.44,147.33,0.12549]
[1724800155619,42.55715988,147.43,147.33,0.12549]
[1724800158330,384.9,147.45,147.34,6.1231]
[1724800158538,384.9,147.45,147.35,45.25098]
[1724800159117,427.45715988,147.45,147.35,45.25098]
[1724800162015,42.55715988,147.39,147.31,21.968]
[1724800162223,42.55715988,147.37,147.29,7.09890648]
[1724800162527,42.55715988,147.32,147.23,7.10333544]
[1724800162730,42.55715988,147.3,147.23,7.10333544]
[1724800163337,42.55715988,147.34,147.23,7.10333544]
[1724800163919,42.55715988,147.34,147.24,0.12549]
[1724800164238,42.55715988,147.36,147.24,65.25098]
[1724800164421,42.55715988,147.38,147.24,65.25098]
[1724800164618,42.55715988,147.38,147.25,42.55715988]
[1724800164817,384.9,147.39,147.27,42.55715988]
[1724800165023,384.9,147.39,147.29,22.2106]
[1724800166139,42.55715988,147.35,147.29,22.2106]
[1724800166349,42.55715988,147.35,147.26,0.12549]
[1724800166548,42.55715988,147.35,147.26,45.0]
[1724800167223,42.55715988,147.37,147.26,45.0]
[1724800168031,42.55715988,147.37,147.27,0.25098]
[1724800168547,384.9,147.39,147.27,0.25098]
[1724800168723,384.9,147.39,147.27,42.80813988]
[1724800168924,384.9,147.39,147.28,45.0]
[1724800169120,427.45715988,147.43,147.3,6.3235]
[1724800169319,384.9,147.43,147.32,16.0198]
[1724800169550,384.9,147.43,147.33,0.12549]
[1724800169726,433.58835988,147.45,147.33,0.95763987]
[1724800169924,42.55715988,147.43,147.33,45.25098]
[1724800170133,42.55715988,147.41,147.33,45.25098]
[1724800171023,42.55715988,147.41,147.32,16.0198]
[1724800173843,42.55715988,147.43,147.32,16.0198]
[1724800174046,42.55715988,147.43,147.33,45.25098]
[1724800177553,42.55715988,147.41,147.34,20.0]
[1724800177948,42.55715988,147.41,147.32,16.0198]
[1724800178275,42.55715988,147.39,147.32,16.0198]
[1724800178443,42.55715988,147.37,147.32,16.0198]
[1724800179061,384.9,147.41,147.32,16.0198]
[1724800179244,384.9,147.41,147.33,20.0]
[1724800179843,384.9,147.41,147.34,45.12549]
[1724800180046,384.9,147.41,147.34,45.25098]
[1724800180350,384.9,147.41,147.35,20.0]
[1724800181560,384.9,147.41,147.32,16.0198]
[1724800181561,42.55715988,147.38,147.32,16.0198]
[1724800181761,42.55715988,147.36,147.31,3.51979985]
[1724800181949,45.12549,147.4,147.29,3.51979985]
[1724800181950,42.55715988,147.34,147.29,3.51979985]
[1724800182165,42.55715988,147.32,147.28,5.48618808]
[1724800182368,42.55715988,147.32,147.26,6.4622]
[1724800183142,42.55715988,147.32,147.27,20.0]
[1724800184141,0.12549,147.39,147.27,20.0]
[1724800184349,42.55715988,147.4,147.29,16.3207]
[1724800184557,6.6226,147.43,147.29,16.3207]
[1724800184558,42.55715988,147.42,147.3,65.25098]
[1724800185669,20.0,147.41,147.3,65.25098]
[1724800185852,65.12549,147.41,147.3,65.25098]
[1724800186264,65.12549,147.41,147.31,3.51577126]
[1724800186663,42.68264988,147.42,147.31,3.51577126]
[1724800186972,42.68264988,147.42,147.31,3.5156229]
[1724800187967,42.55715988,147.44,147.33,6.6491]
[1724800188281,42.55715988,147.46,147.34,66.47887]
[1724800188463,6.2305,147.47,147.36,16.366]
[1724800188971,42.55715988,147.44,147.36,16.366]
[1724800189176,6.2305,147.47,147.36,16.366]
[1724800189356,1.79309079,147.48,147.36,16.366]
[1724800189553,7.10000586,147.49,147.37,71.77608]
[1724800189748,42.55715988,147.5,147.37,71.77608]
[1724800189970,13.282,147.55,147.39,42.55715988]
[1724800189971,42.55715988,147.52,147.39,42.55715988]
[1724800190178,42.55715988,147.52,147.4,65.25098]
[1724800190357,42.55715988,147.54,147.42,15.6284]
[1724800190552,42.55715988,147.54,147.43,46.60737244]
[1724800191850,8.25567919,147.55,147.42,15.6284]
[1724800191851,42.55715988,147.51,147.42,15.6284]
[1724800192174,51.09968716,147.51,147.42,15.6284]
[1724800192671,45.25098,147.5,147.42,15.6284]
[1724800193052,51.09968716,147.48,147.38,15.6284]
[1724800193503,51.09968716,147.45,147.39,20.0]
[1724800193966,51.09968716,147.45,147.38,15.6284]
[1724800194654,45.12549,147.5,147.38,15.6284]
[1724800194863,71.22517716,147.49,147.38,15.6284]
[1724800195062,0.12549,147.48,147.38,15.6284]
[1724800195660,71.09968716,147.49,147.38,15.6284]
[1724800195867,71.09968716,147.49,147.39,45.25098]
[1724800199762,45.12549,147.48,147.38,15.6284]
[1724800199968,51.09968716,147.55,147.39,0.12549]
[1724800200168,51.09968716,147.55,147.4,51.09968716]
[1724800200379,51.09968716,147.55,147.42,6.665]
[1724800200592,51.09968716,147.55,147.44,15.2096]
[1724800201785,51.09968716,147.55,147.45,45.25098]
[1724800201990,51.09968716,147.56,147.45,45.25098]
[1724800202161,51.09968716,147.59,147.46,26.665]
[1724800202363,51.09968716,147.56,147.46,6.665]
[1724800202561,2.60374841,147.62,147.46,6.665]
[1724800202562,51.09968716,147.53,147.46,6.665]
[1724800203469,45.25098,147.52,147.44,15.2096]
[1724800203680,51.09968716,147.5,147.44,15.2096]
[1724800204186,51.09968716,147.5,147.42,6.665]
[1724800204391,51.09968716,147.47,147.42,6.665]
[1724800204765,51.09968716,147.47,147.4,15.2096]
[1724800205170,51.09968716,147.5,147.4,15.2096]
[1724800206293,51.09968716,147.47,147.4,15.2096]
[1724800206667,20.0,147.46,147.4,15.2096]
[1724800208487,51.09968716,147.47,147.4,15.2096]
[1724800208712,384.9,147.48,147.4,15.2096]
[1724800208997,0.12549,147.47,147.4,15.2096]
[1724800209170,20.12549,147.47,147.4,15.2096]
[1724800209365,20.0,147.47,147.4,15.2096]
[1724800210395,384.9,147.48,147.41,0.12549]
[1724800210597,384.9,147.48,147.41,65.25098]
[1724800211105,384.9,147.48,147.41,45.25098]
[1724800212292,384.9,147.48,147.41,45.12549]
[1724800212677,384.9,147.48,147.4,15.2096]
[1724800214209,384.9,147.48,147.41,20.0]
[1724800214696,51.09968716,147.52,147.42,45.0]
[1724800214897,51.09968716,147.52,147.4,15.2096]
[1724800215201,51.09968716,147.52,147.41,45.25098]
[1724800215502,0.12549,147.51,147.41,45.25098]
[1724800215670,65.25098,147.51,147.41,45.25098]
[1724800216076,107.82752722,147.51,147.41,45.25098]
[1724800216717,107.82752722,147.51,147.41,0.12549]
[1724800216998,42.57654722,147.49,147.4,15.2096]
[1724800219198,42.57654722,147.47,147.4,15.2096]
[1724800219397,42.57654722,147.45,147.38,6.665]
[1724800219594,42.57654722,147.45,147.35,22.3361]
[1724800219986,42.57654722,147.47,147.35,22.3361]
[1724800220710,45.0,147.46,147.36,65.0]
[1724800220907,42.57654722,147.45,147.36,20.0]
[1724800222898,42.57654722,147.45,147.35,22.46159]
[1724800223216,42.57654722,147.41,147.31,22.3361]
[1724800223390,42.57654722,147.39,147.31,22.3361]
[1724800225406,42.57654722,147.41,147.32,0.12549]
[1724800225715,20.0,147.4,147.32,0.12549]
[1724800226216,42.57654722,147.41,147.32,45.25098]
[1724800226692,42.57654722,147.41,147.33,0.79938202]
[1724800226894,384.9,147.43,147.34,0.12549]
[1724800227092,384.9,147.43,147.34,0.25098]
[1724800227398,384.9,147.43,147.32,45.0]
[1724800227399,42.57654722,147.41,147.32,45.0]
[1724800227582,42.57654722,147.41,147.31,22.46159]
[1724800230084,42.57654722,147.39,147.31,22.3361]
[1724800232814,42.57654722,147.39,147.28,22.87385229]
[1724800233011,42.57654722,147.39,147.29,65.0]
[1724800234218,42.57654722,147.39,147.3,0.12549]
[1724800234516,42.57654722,147.39,147.3,0.25098]
[1724800236598,384.9,147.41,147.3,0.25098]
[1724800237112,42.57654722,147.37,147.29,65.0]
[1724800238518,42.57654722,147.37,147.3,0.12549]
[1724800238717,42.57654722,147.37,147.3,0.25098]
[1724800239422,42.57654722,147.4,147.3,0.25098]
[1724800239810,384.9,147.41,147.3,0.25098]
[1724800240710,42.57654722,147.38,147.3,0.25098]
[1724800241707,42.57654722,147.38,147.3,0.12549]
[1724800241914,42.57654722,147.36,147.28,15.7951]
[1724800242225,42.57654722,147.38,147.28,15.7951]
[1724800242428,42.57654722,147.38,147.29,1.35291129]
[1724800242608,42.57654722,147.38,147.28,15.7951]
[1724800243302,42.57654722,147.38,147.29,45.25098]
[1724800245121,447.47654722,147.4,147.29,45.25098]
[1724800245528,42.57654722,147.38,147.29,45.25098]
[1724800246312,447.47654722,147.4,147.29,45.25098]
[1724800246722,384.9,147.4,147.3,20.0]
[1724800246924,384.9,147.4,147.31,45.25098]
[1724800247331,42.57654722,147.42,147.31,45.25098]
[1724800247735,20.0,147.41,147.31,45.25098]
[1724800248134,42.57654722,147.38,147.31,0.12549]
[1724800248312,42.57654722,147.38,147.28,15.7951]
[1724800248313,42.57654722,147.38,147.29,20.0]
[1724800248634,42.57654722,147.38,147.3,45.25098]
[1724800248816,42.57654722,147.38,147.29,20.0]
[1724800250948,42.57654722,147.38,147.28,15.7951]
[1724800251812,42.57654722,147.38,147.28,19.30835139]
[1724800252614,42.57654722,147.38,147.28,19.30765556]
[1724800253040,6.4079,147.43,147.28,61.88420278]
[1724800253230,6.4079,147.43,147.3,42.57654722]
[1724800253428,6.4079,147.43,147.31,72.74653345]
[1724800254338,42.57654722,147.42,147.31,65.25098]
[1724800255636,42.57654722,147.4,147.31,65.25098]
[1724800258717,42.57654722,147.4,147.31,20.0]
[1724800259143,42.57654722,147.4,147.3,0.12549]
[1724800259341,42.57654722,147.4,147.3,3.75995958]
[1724800259544,42.57654722,147.4,147.3,20.25098]
[1724800260424,42.57654722,147.4,147.3,0.25098]
[1724800260744,42.57654722,147.4,147.3,45.25098]
[1724800260943,42.57654722,147.4,147.31,20.0]
[1724800261253,42.57654722,147.38,147.3,0.12549]
[1724800261427,42.57654722,147.38,147.29,45.25098]
[1724800265326,384.9,147.41,147.29,45.25098]
[1724800265644,58.36464722,147.49,147.34,42.57654722]
[1724800265950,58.36464722,147.49,147.36,16.2749]
[1724800266151,42.57654722,147.49,147.38,6.0845]
[1724800266345,42.57654722,147.49,147.39,0.25098]
[1724800266544,42.57654722,147.49,147.39,0.64625179]
[1724800266743,42.57654722,147.49,147.39,45.64625179]
[1724800266943,42.57654722,147.49,147.39,45.25098]
[1724800267156,42.57654722,147.47,147.38,6.0845]
[1724800267451,42.57654722,147.43,147.36,16.2749]
[1724800269360,42.57654722,147.45,147.36,16.2749]
[1724800270039,42.57654722,147.45,147.36,19.78621428]
[1724800270237,42.57654722,147.43,147.36,16.2749]
[1724800270837,42.57654722,147.43,147.36,19.78563766]
[1724800271037,42.57654722,147.43,147.36,16.2749]
[1724800274161,42.57654722,147.41,147.36,16.2749]
[1724800275459,42.57654722,147.41,147.34,6.0845]
[1724800275652,42.57654722,147.39,147.33,5.47196698]
[1724800275852,42.57654722,147.39,147.33,3.51298708]
[1724800276350,42.57654722,147.41,147.33,3.51298708]
[1724800277357,42.57654722,147.41,147.33,4.4076719]
[1724800277750,42.57654722,147.41,147.33,3.51298708]
[1724800277941,42.57654722,147.41,147.33,48.51298708]
[1724800278140,42.57654722,147.41,147.33,45.0]
[1724800279658,42.57654722,147.41,147.32,16.33259]
[1724800279867,42.57654722,147.39,147.33,3.51636449]
[1724800280364,42.57654722,147.39,147.32,19.72346449]
[1724800280544,42.57654722,147.37,147.32,19.72346449]
[1724800280882,42.57654722,147.37,147.32,16.2071]
[1724800283377,385.02549,147.41,147.32,16.2071]
[1724800283564,42.57654722,147.38,147.32,16.2071]
[1724800287969,386.77412539,147.41,147.32,16.2071]
[1724800288182,34.11977982,147.37,147.32,16.2071]
[1724800290286,34.11977982,147.39,147.32,16.2071]
[1724800292258,34.11977982,147.37,147.32,16.2071]
[1724800295383,34.11977982,147.35,147.32,16.2071]
[1724800297089,34.11977982,147.35,147.3,6.2997]